bitfinex/quotes_ETHUSD_20251118
["timestamp","ask_amount","ask_price","bid_price","bid_amount"]
[1763475749496,0.279,3046.8,3046.0,0.4663]
[1763475750093,0.279,3046.8,3046.7,0.4511]
[1763475750420,0.5004,3047.6,3046.7,0.9174]
[1763475750586,1.066,3046.8,3046.7,0.9174]
[1763475750793,1.345,3046.8,3046.7,0.9174]
[1763475753606,0.5004,3047.6,3046.7,0.9174]
[1763475753607,0.002,3047.6,3046.7,0.9174]
[1763475753908,1.066,3046.8,3046.7,0.4511]
[1763475754108,1.345,3046.8,3046.7,0.4511]
[1763475754345,1.345,3046.8,3046.7,0.9174]
[1763475754840,1.345,3046.8,3046.7,0.4511]
[1763475758313,1.345,3046.8,3046.7,0.9499]
[1763475759113,1.345,3046.8,3046.7,0.4511]
[1763475759314,1.345,3046.8,3046.3,0.4988]
[1763475761246,1.345,3046.8,3046.3,1.67364161]
[1763475761642,1.345,3046.8,3046.4,0.4988]
[1763475762518,1.8442,3046.8,3046.3,1.17484161]
[1763475762761,0.4992,3046.7,3046.1,1.67364161]
[1763475763043,0.0024,3046.2,3046.1,1.17484161]
[1763475763242,0.0024,3046.2,3046.1,0.4988]
[1763475763243,0.279,3046.2,3046.1,0.4988]
[1763475763454,0.279,3046.2,3046.1,1.1479]
[1763475765814,0.279,3046.2,3046.1,0.6491]
[1763475766248,0.279,3046.2,3046.1,1.1479]
[1763475766857,0.279,3046.2,3046.1,0.4586]
[1763475768136,0.279,3046.2,3046.1,0.9574]
[1763475768658,1.40539264,3047.2,3046.1,0.4586]
[1763475768835,1.066,3046.2,3046.1,0.4586]
[1763475769360,1.066,3046.2,3046.1,0.9574]
[1763475769946,1.345,3046.2,3046.1,0.9574]
[1763475772161,0.90619264,3047.2,3046.1,0.9574]
[1763475772352,1.345,3047.1,3046.7,0.4586]
[1763475772532,1.345,3047.1,3046.7,0.9574]
[1763475772731,1.345,3047.1,3047.0,0.4586]
[1763475772962,0.002,3047.4,3047.0,0.4586]
[1763475773161,0.279,3047.1,3047.0,0.4586]
[1763475774474,0.002,3047.4,3047.0,0.4586]
[1763475774780,1.345,3047.3,3047.1,0.1905]
[1763475775279,1.345,3047.3,3047.2,0.9574]
[1763475775478,1.345,3047.3,3047.2,0.4586]
[1763475776179,1.345,3047.3,3047.2,0.9574]
[1763475778183,1.345,3047.3,3046.8,0.6893]
[1763475778483,1.345,3047.3,3047.2,0.4586]
[1763475778979,1.345,3047.3,3047.2,0.9574]
[1763475780367,1.066,3047.3,3047.2,0.9574]
[1763475780565,0.002,3047.4,3047.2,0.9574]
[1763475780566,0.002,3047.4,3047.3,0.405504]
[1763475780755,0.002,3047.8,3047.6,0.405504]
[1763475780954,0.002,3047.8,3047.5,0.4586]
[1763475780955,0.002,3047.8,3047.7,0.864104]
[1763475781151,0.281,3047.8,3047.7,0.864104]
[1763475781497,0.002,3047.9,3047.7,0.864104]
[1763475781498,0.002,3047.9,3047.8,0.405504]
[1763475781659,1.068,3048.0,3047.8,1.362904]
[1763475781872,0.70857285,3049.7,3048.0,0.405504]
[1763475782080,0.70857285,3049.7,3048.2,0.864104]
[1763475782466,0.70857285,3049.7,3048.4,0.4586]
[1763475782876,0.281,3048.5,3048.4,0.9574]
[1763475783175,0.281,3048.5,3048.1,0.1905]
[1763475783396,0.281,3048.5,3048.4,0.4586]
[1763475783887,0.281,3048.5,3048.1,0.6893]
[1763475784090,0.281,3048.5,3047.9,0.1905]
[1763475784399,0.281,3048.5,3048.4,0.4586]
[1763475785076,0.281,3048.5,3048.0,0.4988]
[1763475786702,0.281,3048.5,3047.9,0.1905]
[1763475787795,0.281,3048.5,3048.0,0.4644]
[1763475788110,1.066,3048.4,3048.0,0.4644]
[1763475788807,1.066,3048.4,3047.9,0.1905]
[1763475788808,0.4588,3048.3,3047.6,0.6516]
[1763475789304,0.4588,3048.3,3047.6,0.1872]
[1763475789608,0.4588,3048.3,3047.3,0.6516]
[1763475789902,0.4588,3048.3,3047.4,0.4644]
[1763475790314,1.066,3048.4,3047.4,0.4644]
[1763475792173,0.0012,3048.5,3047.5,0.405504]
[1763475792372,0.0012,3048.5,3048.4,0.4878]
[1763475792579,1.3462,3048.5,3048.4,0.4878]
[1763475793310,1.3462,3048.5,3048.2,0.4644]
[1763475793473,1.3462,3048.5,3047.9,0.4644]
[1763475793679,1.3462,3048.5,3048.4,0.4878]
[1763475794626,0.0012,3048.5,3048.4,0.9522]
[1763475794790,1.3462,3048.5,3048.4,0.9522]
[1763475795813,1.3462,3048.5,3048.0,0.4644]
[1763475796133,1.8212,3048.5,3047.6,0.405504]
[1763475796478,1.8212,3048.5,3047.8,0.405504]
[1763475796948,1.3462,3048.5,3047.9,0.4644]
[1763475797912,1.3462,3048.5,3047.7,0.405504]
[1763475798224,1.8068,3048.5,3047.7,0.405504]
[1763475798424,1.8068,3048.5,3047.7,0.869904]
[1763475799243,0.4606,3048.4,3047.3,0.1872]
[1763475799408,0.4606,3048.4,3047.4,0.4644]
[1763475800219,1.3462,3048.5,3047.4,0.4644]
[1763475801011,1.3462,3048.5,3047.9,0.001]
[1763475801212,1.845,3048.5,3047.9,0.001]
[1763475801459,0.4505,3048.0,3047.9,0.001]
[1763475801639,0.7295,3048.0,3047.9,0.001]
[1763475802517,1.0084,3048.0,3047.9,0.001]
[1763475803211,0.7295,3048.0,3047.9,0.001]
[1763475803920,0.279,3048.0,3047.9,0.001]
[1763475804130,0.279,3048.0,3047.9,0.4539]
[1763475804131,1.345,3048.0,3047.9,0.4539]
[1763475804861,1.345,3048.0,3047.9,0.001]
[1763475805567,1.5768,3048.0,3047.9,0.001]
[1763475806547,1.345,3048.0,3047.9,0.001]
[1763475807056,0.4961,3048.3,3047.9,0.001]
[1763475807057,0.0012,3048.5,3047.9,0.4539]
[1763475807246,1.345,3048.4,3047.9,0.4539]
[1763475808139,1.8438,3048.4,3047.9,0.4539]
[1763475808340,1.345,3048.4,3047.9,0.4539]
[1763475808559,0.0012,3048.5,3047.9,0.9412]
[1763475808858,1.345,3048.3,3047.9,0.9412]
[1763475810126,1.345,3048.3,3047.9,0.4539]
[1763475810633,1.8438,3048.3,3047.9,0.4539]
[1763475810835,1.8438,3048.3,3047.9,0.001]
[1763475811060,1.345,3048.3,3047.9,0.001]
[1763475811764,1.345,3048.3,3048.2,0.4529]
[1763475812766,1.345,3048.3,3048.2,0.9402]
[1763475813266,1.345,3048.3,3048.2,0.4529]
[1763475814353,1.345,3048.3,3048.2,0.9402]
[1763475815057,1.345,3048.3,3048.2,1.15110394]
[1763475815753,1.066,3048.3,3048.2,0.21090394]
[1763475815956,1.066,3048.3,3048.2,0.66380394]
[1763475816395,1.066,3048.3,3048.2,1.14570394]
[1763475816556,0.0004,3048.5,3048.3,0.405504]
[1763475816761,0.0004,3048.5,3048.4,2.98411865]
[1763475817098,0.002,3048.8,3048.4,1.22803333]
[1763475817273,0.002,3048.8,3048.7,0.897304]
[1763475817664,0.002,3048.8,3048.7,1.379204]
[1763475818062,0.281,3048.8,3048.7,1.379204]
[1763475819293,0.281,3048.8,3048.7,0.4918]
[1763475819460,0.281,3048.8,3048.5,0.405504]
[1763475819787,0.281,3048.8,3048.6,0.20545594]
[1763475820393,0.281,3048.8,3048.3,1.16715543]
[1763475820555,0.281,3048.8,3048.3,1.64905543]
[1763475820757,0.281,3048.8,3048.2,1.37805937]
[1763475820962,0.281,3048.8,3048.2,0.21090394]
[1763475821162,0.4969,3048.7,3047.9,1.16815543]
[1763475821357,0.4969,3048.7,3047.9,0.4829]
[1763475821971,0.281,3048.8,3047.9,0.4829]
[1763475823194,0.002,3048.8,3047.9,0.4829]
[1763475823495,1.344,3048.7,3048.1,0.405504]
[1763475823693,1.344,3048.7,3048.1,1.57265943]
[1763475823997,1.344,3048.7,3048.6,0.4918]
[1763475824199,1.344,3048.7,3048.6,0.9737]
[1763475826598,1.067,3048.8,3048.7,0.405504]
[1763475826849,1.067,3048.8,3048.7,1.63383994]
[1763475826994,1.065,3049.1,3048.9,0.405504]
[1763475827497,1.065,3049.1,3049.0,1.572304]
[1763475827702,1.344,3049.1,3049.0,1.572304]
[1763475829512,1.067,3049.2,3049.1,0.405504]
[1763475829802,0.002,3049.2,3049.1,1.60978136]
[1763475830020,0.002,3049.9,3049.1,3.36053593]
[1763475830193,0.002,3049.9,3049.8,0.4918]
[1763475830648,0.002,3049.9,3049.8,0.9737]
[1763475830969,0.281,3049.9,3049.8,0.9737]
[1763475831299,0.281,3049.9,3049.8,1.379204]
[1763475831521,1.065,3050.2,3049.9,0.405504]
[1763475831670,1.065,3050.2,3049.9,1.379204]
[1763475831870,1.065,3050.2,3050.1,1.090404]
[1763475832065,0.1841,3051.5,3050.2,0.405504]
[1763475832266,1.065,3051.4,3051.0,0.4918]
[1763475832508,1.065,3051.4,3050.6,0.405504]
[1763475832678,1.065,3051.4,3051.3,1.083704]
[1763475832880,1.344,3051.4,3051.3,0.897304]
[1763475833587,1.344,3051.4,3051.3,1.379204]
[1763475834000,1.344,3051.4,3051.3,0.405504]
[1763475834831,1.065,3051.4,3051.3,0.897304]
[1763475835127,1.065,3051.4,3051.3,0.405504]
[1763475835418,1.065,3051.4,3050.9,0.4819]
[1763475835419,1.7941,3051.4,3050.9,0.405504]
[1763475835779,1.065,3051.4,3051.0,0.4819]
[1763475836209,1.065,3051.4,3051.1,0.1931]
[1763475836408,0.279,3051.3,3051.1,0.1931]
[1763475836708,0.279,3051.3,3051.1,0.675]
[1763475836885,0.279,3051.3,3051.1,0.65661574]
[1763475837087,0.279,3051.3,3050.9,0.405504]
[1763475837288,0.279,3051.3,3050.9,0.887404]
[1763475837506,1.344,3051.2,3050.9,0.887404]
[1763475838010,1.344,3051.2,3051.1,0.897304]
[1763475838519,1.344,3051.2,3051.1,1.572304]
[1763475838905,1.344,3051.2,3051.1,1.090404]
[1763475839310,0.0012,3051.4,3051.3,0.4918]
[1763475839612,1.0662,3051.4,3051.3,0.4918]
[1763475839814,1.0662,3051.4,3051.3,0.9737]
[1763475839990,1.0662,3051.4,3051.3,1.379204]
[1763475840192,0.002,3051.8,3051.3,1.379204]
[1763475840405,0.002,3051.8,3051.7,0.897304]
[1763475840737,1.065,3052.3,3052.1,0.405504]
[1763475841024,0.1841,3053.4,3052.3,0.405504]
[1763475841221,0.278,3053.3,3052.8,0.405504]
[1763475841723,0.278,3053.3,3052.4,0.66364713]
[1763475841724,0.7749,3053.3,3052.5,0.405504]
[1763475841882,0.278,3053.3,3052.5,0.92016403]
[1763475842086,0.278,3053.3,3053.2,0.4918]
[1763475842281,0.681,3054.1,3053.3,0.405504]
[1763475842520,0.278,3054.0,3053.3,0.405504]
[1763475842897,0.278,3054.0,3052.5,0.67140832]
[1763475842898,0.1218,3053.9,3053.0,0.405504]
[1763475843310,0.6187,3053.9,3053.0,0.405504]
[1763475843490,0.6187,3053.9,3052.7,0.405504]
[1763475843691,0.6187,3053.9,3052.7,0.887404]
[1763475844319,0.278,3054.0,3053.0,0.405504]
[1763475844483,0.278,3054.0,3052.9,0.405504]
[1763475844686,0.278,3054.0,3053.9,0.4918]
[1763475844920,0.278,3054.0,3053.1,0.405504]
[1763475845083,0.1218,3053.9,3053.1,0.405504]
[1763475845282,0.278,3054.0,3053.3,0.405504]
[1763475845523,0.278,3054.0,3053.5,0.405504]
[1763475845897,0.2279,3053.6,3053.0,0.405504]
[1763475846103,0.278,3053.5,3053.0,0.405504]
[1763475846289,0.278,3053.5,3053.4,0.896904]
[1763475846695,0.4556,3054.2,3053.5,0.405504]
[1763475846892,0.1841,3054.4,3053.5,1.0717441]
[1763475847095,0.1841,3054.4,3053.5,1.0389948]
[1763475847316,0.1841,3054.4,3053.7,0.405504]
[1763475847703,0.1945,3053.8,3053.1,0.4575]
[1763475847901,0.6397,3054.4,3053.2,0.405504]
[1763475848223,1.342,3054.3,3053.2,0.405504]
[1763475848400,1.7976,3054.3,3053.4,0.405504]
[1763475848603,0.4556,3054.2,3053.4,0.405504]
[1763475848787,0.4556,3054.2,3052.5,1.57840096]
[1763475848788,0.4556,3054.2,3053.1,0.405504]
[1763475849211,0.4556,3054.2,3053.1,0.863004]
[1763475849398,0.4556,3054.2,3053.0,0.405504]
[1763475849618,0.4556,3054.2,3053.0,0.863004]
[1763475849998,1.342,3054.3,3053.2,0.405504]
[1763475850198,1.342,3054.3,3053.4,0.405504]
[1763475850513,1.342,3054.3,3053.4,0.863004]
[1763475850713,0.4556,3054.2,3053.0,0.4575]
[1763475851028,0.4556,3054.2,3053.1,0.405504]
[1763475851629,0.4556,3054.2,3052.8,0.4575]
[1763475851927,0.4556,3054.2,3053.0,0.405504]
[1763475852415,0.4556,3054.2,3052.5,1.34281664]
[1763475852416,0.4556,3054.2,3052.5,1.12890832]
[1763475852607,0.4556,3054.2,3052.6,0.4575]
[1763475853008,0.4556,3054.2,3052.7,0.405504]
[1763475853710,0.4556,3054.2,3052.6,0.4575]
[1763475853928,0.90699264,3054.0,3052.5,0.67140832]
[1763475854253,0.4556,3054.2,3052.6,0.4575]
[1763475854396,0.4556,3054.2,3052.5,0.67140832]
[1763475854397,0.109,3053.9,3052.7,0.405504]
[1763475854597,0.109,3053.9,3052.6,0.405504]
[1763475854832,0.4556,3053.8,3052.6,0.405504]
[1763475855041,0.278,3053.7,3052.6,0.405504]
[1763475855534,0.4556,3053.6,3052.6,0.405504]
[1763475856031,0.4556,3053.6,3052.5,0.67140832]
[1763475856032,0.4666,3052.7,3052.5,0.67140832]
[1763475856335,0.2799,3052.6,3052.5,0.67140832]
[1763475856899,1.3439,3052.6,3052.5,0.67140832]
[1763475857092,0.0019,3052.6,3052.5,0.67140832]
[1763475857318,1.342,3052.6,3052.5,0.67140832]
[1763475857532,1.6226,3052.6,3052.5,0.67140832]
[1763475857719,1.342,3052.6,3052.5,1.16280832]
[1763475858029,1.342,3052.6,3052.5,1.62030832]
[1763475858395,1.342,3052.6,3052.5,2.02581232]
[1763475859034,0.109,3053.9,3052.5,2.22839355]
[1763475859035,1.064,3053.0,3052.5,2.22839355]
[1763475859202,0.278,3052.6,3052.5,2.02581232]
[1763475859401,1.064,3053.0,3052.5,2.02581232]
[1763475859836,1.064,3053.0,3052.9,0.896904]
[1763475860437,1.064,3053.0,3052.9,1.348504]
[1763475860634,1.342,3053.0,3052.9,1.348504]
[1763475862196,0.109,3053.9,3052.9,1.348504]
[1763475862401,1.064,3053.8,3053.0,0.857104]
[1763475862630,6.73379457,3055.0,3053.2,0.405504]
[1763475862631,0.477,3054.7,3053.2,0.405504]
[1763475862835,1.064,3053.8,3053.7,0.903904]
[1763475863146,0.0012,3054.2,3053.8,0.405504]
[1763475863503,0.278,3054.1,3053.9,0.405504]
[1763475864014,0.278,3054.1,3054.0,1.355504]
[1763475864331,0.278,3054.1,3054.0,0.903904]
[1763475864545,0.7416,3054.1,3053.4,0.4516]
[1763475864855,0.0012,3054.2,3052.9,1.76409664]
[1763475865158,0.278,3054.1,3053.1,0.405504]
[1763475865520,0.278,3054.1,3053.3,0.405504]
[1763475865946,0.278,3054.1,3053.5,0.405504]
[1763475867656,0.0012,3054.2,3053.6,0.405504]
[1763475867657,0.278,3054.0,3053.6,0.405504]
[1763475867841,0.0012,3054.2,3053.6,0.405504]
[1763475867842,0.278,3053.9,3053.6,0.405504]
[1763475868044,0.0012,3054.2,3053.8,0.405504]
[1763475868355,1.064,3054.1,3053.8,0.903904]
[1763475868547,1.064,3054.1,3053.8,1.355504]
[1763475868725,1.064,3054.1,3054.0,0.903904]
[1763475868922,0.002,3054.6,3054.2,0.405504]
[1763475869138,1.064,3054.5,3054.2,0.405504]
[1763475869358,0.4636,3054.3,3053.8,0.199]
[1763475869526,0.4636,3054.3,3053.9,0.405504]
[1763475869928,0.1838,3054.2,3053.6,0.604504]
[1763475870739,0.1838,3054.2,3053.4,0.405504]
[1763475871063,0.278,3054.4,3053.5,0.0327493]
[1763475871365,0.278,3054.4,3053.5,0.4516]
[1763475872128,0.755,3054.4,3053.5,0.4516]
[1763475872636,0.278,3054.4,3053.5,0.4516]
[1763475872957,0.278,3054.4,3053.6,0.43825223]
[1763475873462,0.278,3054.4,3053.7,0.405504]
[1763475874232,0.278,3054.4,3053.5,0.405504]
[1763475874560,0.278,3054.4,3053.8,0.405504]
[1763475875454,0.278,3054.4,3053.9,0.405504]
[1763475875833,0.002,3054.4,3054.3,0.903904]
[1763475876034,0.002,3054.6,3054.4,0.405504]
[1763475876230,0.002,3054.6,3054.5,5.10399346]
[1763475876433,1.063,3055.9,3054.6,0.405504]
[1763475876434,0.002,3054.8,3054.6,0.405504]
[1763475876661,1.063,3055.9,3054.6,3.54574096]
[1763475876863,1.063,3055.9,3054.8,1.56126812]
[1763475877063,0.1958,3056.6,3055.9,0.405504]
[1763475877252,1.063,3056.1,3055.9,0.405504]
[1763475877568,1.063,3056.1,3055.8,0.1948]
[1763475877934,0.1958,3056.6,3056.1,0.405504]
[1763475878134,1.341,3056.5,3055.8,0.6943]
[1763475878357,1.341,3056.5,3055.9,0.405504]
[1763475879433,0.1834,3056.0,3055.4,0.405504]
[1763475879665,0.278,3055.9,3055.4,0.405504]
[1763475880059,0.4534,3056.4,3055.5,0.405504]
[1763475880473,0.4534,3056.4,3055.2,0.1948]
[1763475880695,0.4534,3056.4,3055.3,0.405504]
[1763475880835,0.4534,3056.4,3054.9,0.86423641]
[1763475881036,0.4534,3056.4,3054.7,2.06275676]
[1763475881037,0.4534,3056.4,3055.0,0.1948]
[1763475881236,1.063,3056.3,3055.1,0.405504]
[1763475881543,0.278,3056.2,3055.1,0.905004]
[1763475881739,0.278,3056.2,3055.3,0.405504]
[1763475881953,1.063,3056.5,3056.2,0.405504]
[1763475882152,0.1958,3056.9,3056.2,0.890404]
[1763475882395,1.063,3056.8,3056.2,0.890404]
[1763475882569,1.5164,3056.8,3056.0,0.405504]
[1763475882953,1.063,3056.8,3056.0,0.405504]
[1763475883153,1.063,3056.8,3055.7,0.405504]
[1763475883154,0.4534,3056.7,3055.7,0.405504]
[1763475883407,0.4534,3056.7,3055.6,0.1948]
[1763475883569,0.002,3055.7,3055.0,1.05903641]
[1763475883892,0.002,3055.7,3055.1,0.405504]
[1763475883893,0.278,3055.6,3055.1,0.405504]
[1763475884049,0.278,3055.6,3055.0,0.1948]
[1763475884551,0.1957,3055.8,3055.0,0.1948]
[1763475884771,1.341,3055.7,3055.1,0.03273215]
[1763475884987,1.341,3055.7,3055.0,0.6943]
[1763475885204,0.1889,3057.1,3055.7,0.405504]
[1763475885407,1.063,3055.9,3055.7,0.43822972]
[1763475885555,1.063,3055.9,3055.8,0.405504]
[1763475885762,0.4534,3056.7,3055.9,0.405504]
[1763475886268,0.4526,3056.7,3055.9,0.405504]
[1763475886473,0.1889,3057.1,3056.0,0.405504]
[1763475886801,0.278,3056.8,3056.0,0.405504]
[1763475887056,0.278,3056.8,3056.2,0.405504]
[1763475887355,0.278,3056.7,3056.2,0.905004]
[1763475887706,0.278,3056.7,3056.4,0.405504]
[1763475888104,0.278,3056.7,3056.1,0.1948]
[1763475888105,1.341,3056.7,3056.2,0.405504]
[1763475888630,1.341,3056.7,3056.2,1.08162664]
[1763475888937,1.341,3056.7,3056.4,0.405504]
[1763475889935,1.341,3056.7,3056.2,0.58212664]
[1763475890237,1.7944,3056.7,3056.1,0.66642237]
[1763475890540,0.4534,3056.6,3056.2,0.405504]
[1763475890751,1.341,3056.7,3055.9,0.405504]
[1763475891160,1.341,3056.7,3055.9,0.905004]
[1763475891355,1.341,3056.7,3056.0,0.4995]
[1763475891560,1.341,3056.6,3056.1,0.405504]
[1763475891762,0.1889,3057.1,3056.1,0.405504]
[1763475892054,0.4534,3057.3,3055.8,4.37419974]
[1763475892055,1.063,3056.6,3056.5,0.890404]
[1763475892237,1.063,3056.7,3056.6,0.405504]
[1763475892433,1.063,3056.7,3056.6,1.0845448]
[1763475892638,1.063,3057.0,3056.6,1.5694448]
[1763475892834,1.063,3057.0,3056.9,0.890404]
[1763475893073,1.063,3057.1,3057.0,0.405504]
[1763475893232,1.341,3057.1,3057.0,0.890404]
[1763475893770,0.6423,3058.0,3057.0,1.389904]
[1763475894137,0.4534,3057.9,3057.0,0.890404]
[1763475894970,0.4534,3057.9,3056.8,0.405504]
[1763475895126,0.278,3057.8,3056.8,0.405504]
[1763475895530,0.7314,3057.8,3056.8,0.405504]
[1763475895735,0.7314,3057.8,3056.9,0.4995]
[1763475898078,1.5164,3057.6,3056.9,0.405504]
[1763475898281,1.5164,3057.6,3056.5,0.4995]
[1763475898481,1.5164,3057.6,3056.6,0.4995]
[1763475898689,1.341,3057.5,3056.6,0.4995]
[1763475898994,1.341,3057.5,3056.7,0.405504]
[1763475899293,1.341,3057.5,3056.8,0.17692404]
[1763475899517,1.341,3057.5,3056.9,0.405504]
[1763475899896,0.1889,3058.0,3056.9,0.405504]
[1763475900095,0.1889,3058.0,3056.8,0.17692404]
[1763475900096,1.341,3057.9,3057.5,0.405504]
[1763475900298,0.4785,3056.9,3056.5,0.86423641]
[1763475900598,0.4785,3056.9,3054.7,0.85203641]
[1763475900599,0.0028,3056.0,3054.7,0.85203641]
[1763475900885,1.15916152,3055.9,3054.7,0.4995]
[1763475901049,0.405504,3056.4,3054.8,0.4995]
[1763475901250,0.33688516,3056.1,3054.8,0.4995]
[1763475901449,1.34,3056.3,3054.3,0.4995]
[1763475901694,0.4534,3056.2,3054.4,0.03273965]
[1763475901858,0.4534,3056.2,3054.3,0.4995]
[1763475902569,1.34,3056.1,3054.3,1.15326346]
[1763475902747,1.062,3056.0,3054.4,0.53223965]
[1763475902946,0.4534,3056.8,3054.6,0.405504]
[1763475903190,1.063,3056.7,3055.2,0.405504]
[1763475903483,1.341,3056.7,3055.4,0.405504]
[1763475903680,1.341,3056.7,3055.6,0.405504]
[1763475903983,1.7944,3056.7,3055.6,0.405504]
[1763475904282,0.0979,3057.1,3055.8,0.405504]
[1763475904469,1.063,3056.6,3056.1,0.405504]
[1763475904670,0.278,3056.5,3056.1,0.905004]
[1763475905166,0.278,3056.5,3056.1,0.405504]
[1763475905483,0.278,3056.5,3056.1,0.905004]
[1763475905915,1.063,3056.6,3056.5,0.405504]
[1763475906419,1.1307,3056.6,3055.9,2.64073696]
[1763475906717,1.1307,3056.6,3055.3,0.1948]
[1763475906718,0.0048,3056.3,3055.3,1.92854432]
[1763475906891,1.063,3056.6,3055.5,0.4691]
[1763475907091,0.278,3056.5,3055.5,0.405504]
[1763475907305,0.4817,3056.5,3055.5,0.405504]
[1763475907514,1.341,3056.4,3055.5,0.405504]
[1763475907708,1.341,3056.3,3055.5,0.405504]
[1763475908019,1.341,3056.3,3055.7,0.405504]
[1763475908203,1.341,3056.3,3055.4,2.13924832]
[1763475908395,1.8227,3056.3,3055.4,0.405504]
[1763475908907,1.341,3056.3,3055.4,0.405504]
[1763475909099,0.0979,3055.5,3055.3,1.31249664]
[1763475909285,0.278,3055.4,3055.3,1.31249664]
[1763475909487,0.4817,3056.2,3055.3,3.04624096]
[1763475909809,1.063,3056.1,3055.3,3.04624096]
[1763475910004,1.063,3056.1,3055.4,0.03272893]
[1763475910206,1.063,3056.0,3055.6,0.405504]
[1763475910411,0.0979,3056.4,3055.6,0.405504]
[1763475910595,1.063,3056.3,3055.8,1.31249664]
[1763475910920,0.278,3056.2,3056.0,0.405504]
[1763475911217,1.063,3056.7,3056.2,0.405504]
[1763475911420,0.278,3056.6,3056.4,0.405504]
[1763475911818,0.0979,3056.8,3056.4,0.405504]
[1763475911989,0.278,3056.7,3056.6,0.405504]
[1763475912496,0.4817,3057.6,3056.6,0.405504]
[1763475912497,1.063,3057.0,3056.6,0.856804]
[1763475913017,0.4817,3057.6,3056.6,1.325904]
[1763475913221,1.063,3057.5,3056.6,0.856804]
[1763475913689,0.278,3057.4,3056.6,0.856804]
[1763475914029,0.7597,3057.4,3056.6,0.405504]
[1763475914607,0.4817,3057.4,3056.6,0.405504]
[1763475914808,1.341,3057.3,3056.6,0.405504]
[1763475915006,1.341,3057.2,3056.8,0.405504]
[1763475915688,0.4817,3057.6,3056.8,0.405504]
[1763475915689,1.341,3057.1,3056.8,0.405504]
[1763475916592,0.278,3057.0,3056.8,0.405504]
[1763475916790,0.5732,3056.9,3056.5,1.73374432]
[1763475917099,0.5732,3056.9,3056.0,1.73374432]
[1763475917100,0.4753,3056.6,3056.0,1.73374432]
[1763475917299,0.278,3056.5,3055.8,1.73374432]
[1763475917506,1.34,3056.4,3055.9,0.20609801]
[1763475917709,1.34,3056.3,3055.9,0.17337443]
[1763475917909,0.4817,3056.8,3055.9,0.17337443]
[1763475918187,1.34,3056.7,3056.0,0.405504]
[1763475918625,0.4817,3056.7,3055.9,0.17337443]
[1763475918786,1.34,3056.6,3056.0,0.19071188]
[1763475919123,1.34,3056.5,3056.0,0.19071188]
[1763475919434,1.062,3056.8,3056.2,2.13924832]
[1763475919651,1.062,3056.8,3056.5,0.405504]
[1763475919652,0.278,3056.7,3056.5,0.405504]
[1763475920102,0.0971,3059.1,3056.4,0.4513]
[1763475920103,1.062,3059.3,3057.8,0.405504]
[1763475920421,0.1908,3061.0,3057.8,0.405504]
[1763475920422,0.1908,3061.0,3059.2,0.405504]
[1763475920588,0.7685,3060.9,3059.8,0.405504]
[1763475920796,0.28,3060.9,3060.0,0.405504]
[1763475921199,0.1908,3061.0,3059.7,0.03268294]
[1763475921498,0.28,3060.8,3059.9,0.405504]
[1763475921894,0.7685,3060.8,3059.8,0.17706109]
[1763475922111,0.7685,3060.8,3059.9,0.405504]
[1763475922298,0.28,3060.7,3059.9,0.405504]
[1763475922522,0.28,3060.7,3060.0,0.03267973]
[1763475922837,1.2528,3061.0,3060.1,0.405504]
[1763475922838,0.281,3060.6,3060.1,0.405504]
[1763475923042,0.281,3060.6,3059.2,1.73792795]
[1763475923225,0.1908,3061.0,3059.1,0.1866]
[1763475923226,0.4885,3060.5,3059.3,0.03268721]
[1763475923544,1.343,3060.4,3059.4,0.43819014]
[1763475924407,1.343,3060.4,3058.6,0.4547]
[1763475924408,0.4885,3060.3,3058.6,0.4547]
[1763475924611,0.4885,3060.3,3058.7,0.03269362]
[1763475924921,1.343,3060.2,3058.8,0.405504]
[1763475925115,1.343,3060.2,3059.0,1.31249664]
[1763475925317,1.343,3060.2,3059.2,0.405504]
[1763475925630,0.4885,3060.1,3059.2,0.405504]
[1763475925818,1.343,3060.2,3059.2,0.405504]
[1763475926130,1.8315,3060.2,3059.2,0.405504]
[1763475926306,0.4885,3060.1,3059.2,0.405504]
[1763475926503,1.062,3060.7,3059.4,0.405504]
[1763475926727,0.1908,3061.0,3059.6,0.405504]
[1763475926910,0.281,3060.6,3059.6,0.405504]
[1763475927118,0.281,3060.6,3059.8,0.405504]
[1763475927627,1.5505,3060.9,3059.2,3.26881145]
[1763475927628,1.343,3060.5,3060.0,0.405504]
[1763475927926,1.343,3060.5,3059.7,0.405504]
[1763475928336,1.343,3060.5,3059.8,0.03268187]
[1763475928638,1.343,3060.5,3059.7,0.405504]
[1763475928840,1.343,3060.5,3059.9,0.405504]
[1763475929041,0.4885,3060.4,3059.9,0.405504]
[1763475929214,0.4885,3060.4,3059.1,0.6406]
[1763475929215,1.343,3060.5,3059.2,0.405504]
[1763475929415,0.4885,3060.8,3059.4,0.405504]
[1763475929623,1.343,3060.7,3059.6,0.405504]
[1763475929817,1.343,3060.6,3059.8,0.405504]